bitfinex/quotes_ETHUSD_20260227
["timestamp","ask_amount","ask_price","bid_price","bid_amount"]
[1772181252310,1.81612366,2037.9,2037.4,0.0011]
[1772181252981,0.001,2037.9,2037.5,0.56912949]
[1772181254691,1.22775646,2037.9,2037.5,0.56912949]
[1772181254894,0.55864071,2037.9,2037.4,1.22815295]
[1772181255219,0.55864071,2037.9,2037.4,0.0011]
[1772181255418,0.55864071,2037.9,2037.4,1.7972723]
[1772181257300,0.001,2037.9,2037.5,0.56912949]
[1772181257813,0.001,2037.9,2037.5,0.57022949]
[1772181257982,0.001,2037.8,2037.5,0.57022949]
[1772181260407,0.001,2037.8,2037.5,1.79721153]
[1772181260807,0.001,2037.8,2037.5,0.0011]
[1772181261017,0.55864071,2037.8,2037.5,0.0011]
[1772181263116,1.7855141,2037.8,2037.5,0.0011]
[1772181267686,0.55764071,2037.7,2037.5,0.0011]
[1772181270286,0.001,2037.6,2037.5,0.0011]
[1772181275723,0.55864071,2037.6,2037.4,0.0011]
[1772181276113,0.55864071,2037.6,2037.1,0.0011]
[1772181278413,0.5885274,2037.4,2037.1,0.0011]
[1772181279130,0.5885274,2037.1,2036.8,0.0011]
[1772181281021,0.55915449,2037.0,2036.8,0.0011]
[1772181282227,1.22717742,2037.2,2036.8,0.57611783]
[1772181282616,1.78633191,2037.2,2036.8,0.57611783]
[1772181283301,1.22717742,2037.2,2036.8,0.0011]
[1772181283502,0.55915449,2037.1,2036.8,0.0011]
[1772181285128,0.55915449,2037.1,2036.5,0.57611783]
[1772181285502,1.78643251,2037.1,2036.6,0.57501783]
[1772181290144,1.22722288,2037.2,2036.7,0.57501783]
[1772181291017,1.78637737,2037.2,2036.7,0.57501783]
[1772181291645,0.55915449,2037.1,2036.7,0.57501783]
[1772181293243,1.22729504,2037.0,2036.7,0.57501783]
[1772181293540,1.78644953,2037.0,2036.5,1.05867298]
[1772181293740,1.78644953,2037.0,2036.8,0.0011]
[1772181293940,0.001,2036.9,2036.8,0.0011]
[1772181297749,0.56015449,2036.9,2036.8,0.0011]
[1772181298122,0.56015449,2036.9,2036.5,0.57611783]
[1772181298324,0.56015449,2036.9,2036.5,0.0011]
[1772181299645,1.78657004,2036.8,2036.5,0.0011]
[1772181300325,0.55915449,2036.7,2036.3,0.0011]
[1772181300650,0.55915449,2036.6,2036.3,0.0011]
[1772181301820,1.78674825,2036.6,2036.3,0.0011]
[1772181302042,0.55915449,2036.5,2036.3,0.0011]
[1772181304052,1.78679463,2036.5,2036.3,0.0011]
[1772181304735,0.55915449,2036.4,2036.3,0.0011]
[1772181306558,1.78681113,2036.4,2036.3,0.0011]
[1772181307133,0.55915449,2036.3,2036.0,0.59261553]
[1772181307553,0.55915449,2036.3,2036.0,0.0175977]
[1772181308934,0.55915449,2036.3,2035.6,0.57501783]
[1772181308935,0.55915449,2036.1,2035.6,0.57501783]
[1772181309158,0.48255515,2035.9,2035.2,0.57501783]
[1772181309357,0.55915449,2035.7,2035.2,0.57501783]
[1772181309656,2.31015449,2035.8,2035.3,0.57501783]
[1772181310060,1.751,2035.8,2035.3,0.57501783]
[1772181310250,0.5393224,2035.7,2035.3,0.57501783]
[1772181310761,0.5393224,2035.7,2035.2,0.48255515]
[1772181310932,0.5393224,2035.7,2035.4,0.55420661]
[1772181311775,1.751,2035.8,2035.5,0.55420661]
[1772181311929,3.51834564,2035.8,2035.3,0.55420661]
[1772181312128,0.5393224,2035.7,2035.2,1.710894]
[1772181312482,0.5393224,2035.7,2035.2,0.55420661]
[1772181313064,1.76746152,2035.6,2035.2,0.55420661]
[1772181313650,0.5393224,2035.5,2035.1,0.55420661]
[1772181314529,0.5393224,2035.5,2034.9,1.78273285]
[1772181314930,0.5393224,2035.5,2035.0,0.55420661]
[1772181315146,0.5393224,2035.5,2035.0,1.78265836]
[1772181315467,0.5393224,2035.5,2035.1,0.55420661]
[1772181315939,1.76752879,2035.5,2035.1,0.55420661]
[1772181316142,1.76746152,2035.6,2035.1,0.55420661]
[1772181316343,3.51836156,2035.8,2035.4,0.48255515]
[1772181316654,2.97903916,2035.8,2035.5,0.55420661]
[1772181317241,0.5393224,2035.7,2035.3,1.03676176]
[1772181317564,0.5393224,2035.7,2035.3,2.2650697]
[1772181319366,1.76740273,2035.7,2035.3,1.03676176]
[1772181319563,0.5393224,2035.7,2035.3,1.03676176]
[1772181319762,0.5393224,2035.7,2035.3,2.26506873]
[1772181320065,1.76740876,2035.7,2035.3,1.03676176]
[1772181320268,0.5393224,2035.6,2035.1,2.2662598]
[1772181320465,0.5393224,2035.6,2035.1,1.03786176]
[1772181320666,0.5393224,2035.6,2035.1,0.0011]
[1772181321361,1.76752185,2035.5,2035.1,0.0011]
[1772181321767,0.5393224,2035.4,2035.1,0.0011]
[1772181322467,0.5393224,2035.2,2034.9,0.0011]
[1772181322668,0.5393224,2034.7,2034.6,0.0011]
[1772181322868,1.754,2034.7,2034.6,0.0011]
[1772181324968,1.754,2034.7,2034.1,0.55420661]
[1772181324969,4.00455991,2034.7,2034.1,0.55420661]
[1772181325142,0.5393224,2034.6,2034.1,0.55420661]
[1772181325547,1.76812326,2034.6,2034.1,0.55420661]
[1772181326274,0.5393224,2034.5,2034.1,0.55420661]
[1772181326491,1.22880086,2034.6,2033.4,6.97907663]
[1772181326492,0.48255515,2034.2,2033.5,0.55420661]
[1772181326693,5.57179721,2034.6,2033.9,0.55420661]
[1772181326694,0.5393224,2034.5,2033.9,0.55420661]
[1772181327469,1.02187755,2034.4,2033.9,0.55420661]
[1772181327645,1.76824635,2034.3,2033.7,2.26601716]
[1772181327846,1.02187755,2034.2,2033.7,0.55420661]
[1772181328069,1.02187755,2034.2,2033.6,1.22934181]
[1772181328070,0.5393224,2034.1,2033.6,1.22934181]
[1772181328767,0.5393224,2034.1,2033.5,2.26612201]
[1772181328969,0.5393224,2034.1,2033.5,1.22936025]
[1772181329149,0.5393224,2034.1,2033.5,0.55420661]
[1772181329349,0.5393224,2034.1,2033.7,0.55420661]
[1772181329677,1.76841186,2034.1,2033.5,1.03676176]
[1772181330047,0.5393224,2034.0,2033.5,1.03676176]
[1772181330441,0.5393224,2034.0,2033.5,0.55420661]
[1772181330647,0.5393224,2034.0,2033.4,1.229443]
[1772181330648,1.02187755,2033.9,2033.3,1.78368808]
[1772181331065,0.5393224,2033.8,2033.1,0.55420661]
[1772181331269,1.02187755,2033.6,2033.1,0.55420661]
[1772181331647,1.02187755,2033.6,2033.0,1.22966521]
[1772181331648,0.5393224,2033.3,2032.1,5.47510468]
[1772181331850,3.77445231,2033.5,2032.2,1.23019387]
[1772181331851,1.02187755,2032.8,2032.2,1.23019387]
[1772181332078,0.5393224,2032.7,2032.2,1.23019387]
[1772181332278,1.053,2032.8,2032.4,0.55420661]
[1772181332478,1.053,2032.8,2032.5,0.48255515]
[1772181332678,1.053,2032.8,2032.3,0.48255515]
[1772181332873,1.053,2032.8,2032.0,1.23028022]
[1772181332874,0.5393224,2032.7,2032.0,1.23028022]
[1772181333257,0.5393224,2032.5,2031.9,1.39114352]
[1772181333453,0.5393224,2032.5,2031.9,0.1607729]
[1772181333677,0.5393224,2032.3,2031.9,0.1607729]
[1772181334065,0.5393224,2032.3,2031.5,0.55420661]
[1772181335096,0.5393224,2032.6,2031.7,0.55420661]
[1772181335391,0.5393224,2032.6,2031.5,0.55420661]
[1772181335889,0.5393224,2032.4,2031.6,1.23055719]
[1772181336085,0.5393224,2032.4,2031.7,0.55420661]
[1772181336258,0.5393224,2032.7,2031.8,0.55420661]
[1772181336459,1.053,2032.8,2032.1,0.55420661]
[1772181336660,0.5393224,2032.9,2032.1,0.55420661]
[1772181336889,1.76910733,2032.9,2032.1,0.55420661]
[1772181337689,0.5393224,2032.9,2032.2,1.23019387]
[1772181338065,1.76,2033.0,2032.4,0.55420661]
[1772181338284,7.40217963,2033.5,2032.4,0.55420661]
[1772181338285,0.49592884,2033.4,2032.4,0.55420661]
[1772181339499,6.13813868,2033.5,2032.5,0.51610852]
[1772181339500,1.2294385,2033.5,2032.5,0.51610852]
[1772181339976,1.7640827,2033.5,2032.6,1.77011027]
[1772181340359,0.5346442,2033.4,2032.6,1.77011027]
[1772181340554,0.5346442,2033.4,2032.6,1.22995178]
[1772181340759,2.98834714,2033.6,2032.7,0.54015849]
[1772181340956,2.2936442,2033.6,2032.7,0.54015849]
[1772181341383,1.759,2033.6,2032.8,0.54015849]
[1772181341603,3.52299402,2033.6,2032.8,0.54015849]
[1772181341905,2.2936442,2033.6,2032.8,0.54015849]
[1772181342186,2.2936442,2033.6,2032.9,1.22977027]
[1772181342361,3.52299352,2033.6,2032.9,1.22977027]
[1772181342564,0.001,2033.4,2032.9,1.22977027]
[1772181343882,0.001,2033.4,2032.9,1.76992876]
[1772181344071,0.001,2033.4,2033.1,1.2296493]
[1772181344802,0.5346442,2034.3,2033.4,0.54015849]
[1772181345318,6.67321295,2034.5,2033.4,0.54015849]
[1772181345319,2.98684014,2034.5,2033.4,0.54015849]
[1772181345587,0.5346442,2034.4,2033.4,0.54015849]
[1772181346460,0.5346442,2034.2,2033.5,1.22940742]
[1772181346686,0.5346442,2034.2,2033.4,0.54015849]
[1772181346687,0.5346442,2034.2,2033.4,1.7695791]
[1772181347389,0.5346442,2034.2,2033.3,4.91795199]
[1772181347390,0.5346442,2034.0,2033.2,1.22956085]
[1772181347594,0.5346442,2034.0,2033.1,1.76975982]
[1772181347802,0.5346442,2034.0,2033.1,1.22960133]
[1772181350394,0.5346442,2033.8,2033.0,0.54015849]
[1772181352098,0.5346442,2033.8,2032.8,1.76998926]
[1772181352297,0.5346442,2033.8,2032.8,0.54015849]
[1772181352298,0.5346442,2033.6,2032.8,0.54015849]
[1772181352497,0.5346442,2033.6,2032.8,1.76997507]
[1772181353571,0.5346442,2033.6,2032.6,5.45984802]
[1772181353772,0.5346442,2033.6,2032.5,1.22995178]
[1772181353773,0.5346442,2033.4,2032.5,1.77012989]
[1772181354396,1.76417255,2033.3,2032.5,1.77012989]
[1772181354799,1.22952835,2033.3,2032.5,1.77012989]
[1772181354986,0.5346442,2033.2,2032.5,1.77012989]
[1772181355684,1.22948143,2033.4,2033.0,0.0011]
[1772181356084,3.51709615,2033.5,2033.0,0.0011]
[1772181356285,1.753,2033.5,2033.1,1.2296493]
[1772181356597,1.753,2033.5,2033.1,1.76980779]
[1772181358304,1.753,2033.5,2033.0,1.23076303]
[1772181361078,2.9824125,2033.5,2033.0,0.0011]
[1772181361482,3.5170567,2033.5,2033.0,0.0011]
[1772181363921,0.5346442,2033.4,2033.0,0.0011]
[1772181364224,0.5346442,2033.4,2032.7,0.0011]
[1772181364225,0.5346442,2033.3,2032.7,0.0011]
[1772181365197,0.5346442,2033.3,2032.2,3.86627413]
[1772181365594,1.22958882,2033.2,2032.2,3.86627413]
[1772181365799,0.5346442,2033.1,2032.2,3.86627413]
[1772181366422,0.5346442,2033.1,2032.1,1.77147508]
[1772181366958,0.5346442,2033.1,2032.1,0.54125849]
[1772181367620,1.22970978,2033.0,2032.1,1.77151258]
[1772181367803,0.5346442,2032.9,2032.1,1.77151258]
[1772181367996,0.5346442,2032.9,2032.1,1.77149655]
[1772181368717,0.5346442,2032.9,2032.3,0.0011]
[1772181368925,0.5346442,2032.9,2032.3,0.54125849]
[1772181369727,1.22983077,2032.8,2032.3,0.54125849]
[1772181372020,1.22983077,2032.8,2032.1,0.0011]
[1772181372021,0.48939954,2032.7,2032.1,0.0011]
[1772181373240,2.24539954,2032.6,2032.1,0.0011]
[1772181373641,1.756,2032.6,2032.1,0.47732831]
[1772181374797,1.756,2032.6,2032.3,0.47622831]
[1772181374996,1.22810246,2032.6,2032.3,0.47622831]
[1772181375224,1.22810246,2032.6,2032.1,1.37833192]
[1772181375397,2.94745874,2032.6,2032.1,0.0011]
[1772181375599,2.94745874,2032.6,2032.0,0.0011]
[1772181375600,0.48939954,2032.5,2032.0,0.0011]
[1772181377033,0.48939954,2032.3,2032.0,0.0011]
[1772181378931,0.48939954,2032.3,2031.3,4.92292978]
[1772181378932,0.48939954,2032.0,2030.6,0.14818811]
[1772181379137,6.7803699,2032.2,2030.7,0.0011]
[1772181379138,0.48939954,2031.4,2030.7,0.0011]
[1772181379335,1.65539954,2031.4,2030.7,0.0011]
[1772181379835,1.65539954,2031.4,2030.8,0.0011]
[1772181380129,1.65539954,2031.4,2030.7,0.0011]
[1772181380511,0.48939954,2031.3,2030.8,0.0011]
[1772181380714,0.48939954,2031.3,2030.7,0.0011]
[1772181380914,1.23079952,2031.2,2030.8,0.0011]
[1772181381115,1.23079952,2031.2,2030.7,0.0011]
[1772181381313,1.166,2031.4,2030.7,0.1434148]
[1772181381516,1.166,2031.4,2030.9,0.1434148]
[1772181381716,1.166,2031.4,2031.0,0.0011]
[1772181382439,1.166,2031.4,2031.3,0.0011]
[1772181382635,1.166,2031.4,2030.9,0.1434148]
[1772181382636,2.88607788,2031.4,2031.1,0.0011]
[1772181382839,1.65539954,2031.4,2030.6,1.37698569]
[1772181383041,2.88609085,2031.4,2030.6,1.37698569]
[1772181383462,0.48939954,2031.3,2030.7,0.0011]
[1772181383607,1.166,2031.4,2030.7,0.14446628]
[1772181385030,1.166,2031.4,2030.8,1.23104195]
[1772181385229,1.166,2031.4,2030.8,1.37328594]
[1772181385446,0.48939954,2032.0,2030.9,0.14224399]
[1772181385646,0.48939954,2031.9,2030.9,0.14224399]
[1772181385834,0.48939954,2031.9,2031.0,0.0011]
[1772181386826,0.48939954,2031.9,2031.0,0.1427925]
[1772181387232,0.48939954,2031.9,2031.1,1.37200746]
[1772181387553,0.49039954,2032.1,2031.2,0.14114734]
[1772181387737,1.72066166,2032.1,2031.2,0.14224734]
[1772181388521,0.49039954,2032.1,2031.2,0.14224734]
[1772181388718,0.001,2032.1,2031.2,0.14224734]
[1772181389357,0.001,2032.1,2031.4,0.14007573]
[1772181390267,0.001,2032.1,2031.5,0.14064914]
[1772181390949,0.001,2032.1,2031.6,0.13854914]
[1772181391859,0.001,2032.1,2031.7,1.36852522]
[1772181392023,0.001,2032.1,2031.8,0.1380286]
[1772181392528,0.48939954,2032.6,2031.9,0.13751404]
[1772181392960,0.48939954,2032.8,2031.9,0.13751404]
[1772181393155,0.48939954,2032.8,2032.0,0.13861404]
[1772181393361,0.48939954,2032.8,2032.0,0.13751404]
[1772181393864,0.48939954,2032.7,2031.8,1.23037551]
[1772181394068,0.001,2032.1,2032.0,0.0011]
[1772181395253,0.48939954,2032.8,2032.0,0.13600555]
[1772181395427,0.48939954,2032.8,2032.1,0.0011]
[1772181395929,0.48939954,2032.8,2032.1,1.23135441]
[1772181397035,0.48939954,2032.7,2032.1,1.23135441]
[1772181398454,0.48939954,2032.7,2032.1,0.0011]
[1772181398754,0.50579896,2032.6,2032.1,0.0011]
[1772181399324,0.50579896,2032.8,2032.1,0.13470471]
[1772181400966,0.50579896,2032.8,2032.1,0.0011]
[1772181403674,0.50579896,2032.8,2032.1,1.23135441]
[1772181403957,1.641,2033.2,2032.2,0.13133862]
[1772181404156,2.14966247,2033.2,2032.2,0.13133862]
[1772181404358,0.50866247,2033.1,2032.3,0.22895584]
[1772181404660,0.50866247,2033.1,2032.3,0.22785584]
[1772181405237,1.641,2033.2,2032.5,0.22742315]
[1772181405749,0.50866247,2033.3,2032.6,1.45847493]
[1772181405932,0.50866247,2033.3,2032.7,0.22742315]
[1772181406456,0.001,2032.9,2032.7,0.22742315]
[1772181406664,0.001,2032.9,2032.8,0.0011]
[1772181406841,0.001,2032.9,2032.7,0.0011]
[1772181407433,0.50866247,2033.4,2032.7,0.22557261]
[1772181407653,0.50866247,2033.4,2032.8,0.0011]
[1772181407960,1.73813085,2033.4,2032.8,1.23093077]
[1772181408266,0.50866247,2033.4,2032.8,1.45608543]
[1772181408467,1.22945674,2033.5,2032.9,0.22515466]
[1772181408644,0.50866247,2033.4,2032.9,0.0011]
[1772181410663,0.50866247,2033.4,2032.8,1.45416387]
[1772181410858,0.50866247,2033.4,2032.9,0.0011]
[1772181411744,0.50866247,2033.4,2033.0,0.0011]
[1772181412057,0.50866247,2033.4,2032.9,0.0011]
[1772181413352,0.50866247,2033.4,2033.0,0.0011]
[1772181414951,0.50866247,2033.3,2032.4,2.799803]
[1772181415154,0.50866247,2033.3,2032.3,5.14434461]
[1772181415363,0.50866247,2033.3,2032.3,1.23013334]
[1772181417058,0.50866247,2033.1,2032.2,5.14487781]
[1772181418185,0.001,2033.8,2033.3,0.22270262]
[1772181418477,0.001,2033.8,2033.1,0.22233026]
[1772181418478,4.37368665,2033.8,2033.1,0.22233026]
[1772181418639,4.37268665,2033.7,2033.1,0.22233026]
[1772181419162,4.37268665,2033.7,2033.2,1.22958882]
[1772181420750,4.37268665,2033.6,2033.2,1.22958882]
[1772181421271,4.37268665,2033.5,2032.9,0.22123866]
[1772181421570,0.50866247,2033.6,2032.9,0.22123866]
[1772181422547,4.37268665,2033.5,2032.9,0.22123866]
[1772181422753,4.37268665,2033.7,2032.9,0.22123866]
[1772181423466,4.37268665,2033.7,2033.1,0.22053167]
[1772181423666,0.50966247,2033.8,2033.1,0.22053167]
[1772181423667,4.37268665,2033.6,2033.1,0.22053167]
[1772181425079,0.50966247,2033.8,2033.1,0.22053167]
[1772181425270,0.001,2033.8,2033.1,0.22053167]
[1772181425480,0.001,2033.8,2033.3,0.21984082]
[1772181426561,1.739,2034.2,2033.4,0.21850133]
[1772181427864,1.739,2034.2,2033.6,0.21816575]
[1772181428068,2.24766247,2034.2,2033.6,0.21816575]
[1772181429077,0.50866247,2034.1,2033.5,1.22940742]
[1772181429960,0.50866247,2034.1,2033.4,4.9176297]
[1772181430272,0.50866247,2034.1,2033.4,5.13449121]
[1772181431058,0.49339434,2034.3,2033.5,0.21686151]
[1772181431776,0.49339434,2034.6,2033.5,0.5028461]
[1772181432074,0.49339434,2034.6,2033.9,0.5028461]
[1772181432276,0.49339434,2034.5,2033.8,1.22922607]
[1772181432447,0.001,2033.9,2033.8,1.22922607]
[1772181432647,0.49339434,2034.3,2033.8,1.22922607]
[1772181435582,0.49339434,2034.2,2033.7,1.22928173]
[1772181435763,0.49339434,2034.2,2033.6,1.22930068]
[1772181437281,0.49339434,2034.2,2033.6,1.73214678]
[1772181439991,0.49339434,2034.5,2033.7,0.5028461]
[1772181440688,0.49339434,2034.5,2033.6,1.22930068]
[1772181441882,1.22886354,2034.4,2033.6,0.5028461]
[1772181442185,0.49339434,2034.3,2033.6,0.5028461]
[1772181445588,0.49339434,2034.3,2033.7,1.22928652]
[1772181445784,1.72231877,2034.3,2033.7,1.22928652]
[1772181446191,0.49339434,2034.2,2033.7,1.22928652]
[1772181446805,0.49339434,2034.2,2033.8,0.0011]
[1772181446968,0.001,2034.1,2033.8,0.0011]
[1772181447986,0.001,2034.1,2033.5,4.91869711]
[1772181447987,0.49439434,2034.1,2033.5,0.0011]
[1772181450074,0.49339434,2033.9,2033.5,0.0011]
[1772181452078,1.72259212,2033.9,2033.5,0.0011]
[1772181454372,0.49339434,2033.8,2033.3,0.0011]
[1772181455096,0.49339434,2033.8,2033.3,1.73344755]
[1772181455392,4.91728907,2034.1,2033.4,0.5028461]
[1772181455393,0.49339434,2034.0,2033.4,0.5028461]
[1772181455600,0.001,2034.1,2033.4,0.5028461]
[1772181456011,1.23004774,2034.1,2033.4,0.5028461]
[1772181456300,1.23004774,2034.1,2033.6,0.5028461]
[1772181456301,1.72344208,2034.1,2033.6,0.5028461]
[1772181456680,1.72344208,2034.1,2033.3,1.23059064]
[1772181456681,0.49339434,2034.0,2033.3,1.23059064]
[1772181457187,0.49339434,2034.0,2033.3,1.73343674]
[1772181457674,0.49339434,2034.0,2033.3,0.5039461]
[1772181457874,0.49339434,2034.0,2033.3,1.7334645]
[1772181458401,0.47799449,2033.8,2033.3,1.7334645]
[1772181460405,1.70723965,2033.8,2033.5,0.0011]
[1772181460569,1.70823965,2033.8,2033.5,0.0011]
[1772181461511,0.46091836,2033.7,2033.5,0.0011]
[1772181463702,1.23027495,2033.8,2033.5,0.0011]
[1772181464010,1.23027495,2033.8,2033.5,0.47150719]
[1772181464533,0.001,2033.8,2033.5,0.47150719]
[1772181465003,0.001,2033.8,2033.5,1.70090257]
[1772181465210,0.001,2033.8,2033.6,0.47040719]
[1772181467678,0.46191836,2033.8,2033.5,0.0011]
[1772181469710,1.69116161,2033.8,2033.5,0.0011]
[1772181469883,0.46091836,2033.7,2033.5,0.0011]
[1772181472058,0.46191836,2033.8,2033.5,0.0011]
[1772181473517,0.46191836,2033.8,2033.7,0.0011]
[1772181474320,0.46191836,2033.8,2033.2,0.0011]
[1772181474321,0.46091836,2033.6,2033.2,0.0011]
[1772181476227,0.46091836,2033.4,2033.2,0.0011]
[1772181480907,1.69029593,2033.6,2033.2,0.0011]
[1772181481110,1.69029593,2033.6,2033.2,0.47150719]
[1772181484236,1.69114443,2033.8,2033.2,0.47150719]
[1772181484425,0.46091836,2033.7,2033.2,0.47150719]
[1772181484926,0.001,2033.8,2033.3,0.47040719]
[1772181486702,0.001,2033.8,2033.4,1.70097507]
[1772181486835,0.46191836,2033.8,2033.4,1.70097507]
[1772181488018,0.46191836,2033.8,2033.4,0.47150719]
[1772181488943,0.46191836,2033.8,2033.4,0.0011]
[1772181488944,0.46091836,2033.7,2033.4,0.0011]
[1772181491962,1.69023689,2033.7,2033.4,0.0011]
[1772181492855,1.73694786,2033.8,2033.4,0.46343902]
[1772181493049,0.50772151,2033.8,2033.4,0.46343902]
[1772181494594,0.50772151,2033.8,2033.4,1.69290276]
[1772181497743,0.50772151,2033.8,2033.5,0.46233902]
[1772181498768,0.001,2033.6,2033.5,0.46233902]
[1772181500646,0.001,2033.6,2033.5,1.69174644]
[1772181503181,0.001,2033.6,2033.5,0.46233902]
[1772181505287,0.001,2033.6,2033.5,1.69174644]
[1772181510478,0.001,2033.6,2033.5,1.69284644]
[1772181518098,0.001,2033.8,2033.6,0.46233902]
[1772181520210,0.001,2033.8,2033.6,1.6916647]
[1772181523279,0.47138992,2033.7,2033.5,0.0011]
[1772181523772,0.47238992,2033.6,2033.5,0.0011]
[1772181524793,0.47238992,2033.6,2033.3,0.0011]
[1772181526177,0.47238992,2033.6,2033.3,0.49597688]
[1772181526383,0.001,2033.6,2033.3,0.49597688]
[1772181529096,0.001,2033.8,2033.5,0.49487688]
[1772181529295,0.47238992,2033.8,2033.5,0.49487688]
[1772181529721,0.47138992,2033.3,2032.6,0.0011]
[1772181530013,0.47138992,2033.1,2032.6,0.0011]
[1772181530200,0.47138992,2033.0,2032.6,0.0011]
[1772181530514,0.47138992,2032.9,2032.6,0.0011]
[1772181530714,0.47138992,2032.9,2032.5,0.0011]
[1772181530715,0.47138992,2032.9,2031.5,6.04743888]
[1772181530916,0.47138992,2032.8,2031.9,0.49487688]
[1772181531114,0.47138992,2032.6,2031.8,0.49487688]
[1772181531713,1.71625636,2032.6,2031.8,0.49487688]
[1772181531917,0.47138992,2032.5,2031.8,0.49487688]
[1772181532909,0.47138992,2032.7,2032.0,0.49487688]
[1772181533726,1.2296493,2033.1,2032.1,0.0011]
[1772181533727,0.47138992,2033.0,2032.1,0.0011]
[1772181533938,0.47138992,2033.0,2032.0,0.0011]
[1772181533939,0.47138992,2032.9,2032.0,0.0011]
[1772181534241,0.47138992,2032.9,2031.6,0.49487688]
[1772181534646,0.47138992,2032.9,2031.7,0.0011]
[1772181535139,0.47138992,2032.7,2032.0,0.0011]
[1772181535937,0.47138992,2032.7,2032.1,0.0011]
[1772181537136,0.47138992,2032.6,2032.1,0.0011]
[1772181538240,4.91917281,2033.0,2032.1,0.49597688]
[1772181538241,0.47138992,2033.0,2032.1,0.49597688]
[1772181540143,0.47138992,2032.8,2032.1,1.72620055]
[1772181540336,0.47138992,2032.8,2032.2,0.49487688]
[1772181541153,0.47138992,2032.8,2032.3,0.49597688]
[1772181541455,0.47138992,2032.8,2032.3,0.49487688]
[1772181541837,1.701104,2033.0,2032.5,0.49487688]
[1772181542227,1.70110963,2033.0,2032.6,0.0011]
[1772181542426,0.47138992,2033.0,2032.6,0.0011]
[1772181542737,1.22968413,2033.1,2032.6,0.49597688]
[1772181543355,0.47138992,2033.0,2032.6,0.0011]
[1772181544873,1.70110093,2033.0,2032.6,0.0011]
[1772181545168,0.47138992,2033.0,2032.6,0.0011]
[1772181545372,1.70110276,2033.0,2032.6,0.0011]
[1772181546646,0.47138992,2032.9,2032.6,0.0011]
[1772181547570,0.47138992,2032.9,2032.7,0.0011]
[1772181547776,0.001,2032.8,2032.7,0.0011]
[1772181548271,0.47138992,2033.1,2032.7,0.49597688]
[1772181549240,0.47138992,2033.0,2032.2,0.0011]
[1772181550765,0.47138992,2033.0,2032.2,0.45754731]
[1772181551948,0.47205421,2032.8,2032.2,0.0011]
[1772181552175,0.47205421,2032.8,2032.2,1.23128163]
[1772181552548,0.47205421,2032.8,2032.2,0.0011]
[1772181553654,0.47205421,2032.8,2032.2,1.23129229]
[1772181553851,0.47205421,2032.8,2032.3,0.45644731]
[1772181554065,0.47205421,2033.0,2032.5,0.45644731]
[1772181554441,2.49767284,2033.2,2032.5,0.45644731]
[1772181554848,2.02561863,2033.2,2032.5,0.45644731]
[1772181555147,0.47205421,2033.1,2032.3,0.45644731]
[1772181555346,0.47205421,2033.1,2032.2,1.23129177]
[1772181555670,0.47205421,2033.1,2032.2,1.68773908]
[1772181555856,0.47205421,2033.1,2032.3,0.45644731]
[1772181556056,0.47205421,2032.9,2032.2,1.23129177]
[1772181556456,0.47205421,2032.9,2032.2,1.68773908]
[1772181558076,0.47205421,2032.9,2032.2,0.0011]
[1772181558077,0.47205421,2032.7,2032.2,0.0011]
[1772181558448,1.22983077,2032.8,2030.9,0.003]
[1772181558449,0.47205421,2032.5,2030.9,0.003]
[1772181558653,13.09896621,2030.8,2030.1,1.23145808]
[1772181558849,0.47205421,2031.2,2030.3,0.45644731]
[1772181559177,12.626912,2031.0,2030.3,0.45644731]
[1772181559860,12.626912,2031.0,2030.8,0.0011]
[1772181560182,1.23098133,2030.9,2030.3,0.45644731]
[1772181560376,1.23098133,2030.9,2030.5,0.0011]
[1772181561879,1.23098133,2030.9,2030.6,7.447012]
[1772181562288,1.70291433,2031.1,2030.6,7.447012]
[1772181562448,12.626912,2031.0,2030.6,7.447012]
[1772181562777,13.09896621,2031.0,2030.6,7.447012]
[1772181563163,12.626912,2031.0,2030.6,7.447012]
[1772181563677,5.39525396,2031.2,2030.6,7.90345931]
[1772181563678,1.23081946,2031.2,2030.6,7.90345931]
[1772181563876,1.23081946,2031.2,2030.6,7.447012]
[1772181564269,1.23081946,2031.2,2030.6,7.90345931]
[1772181564577,4.9229827,2031.3,2030.7,0.45644731]
[1772181564750,17.5498947,2031.3,2030.7,0.45644731]
[1772181564955,4.9229827,2031.3,2030.7,0.45644731]
[1772181565699,0.47205421,2031.0,2030.5,0.0011]
[1772181565858,0.47205421,2031.0,2030.6,6.92596649]
[1772181566057,0.47205421,2031.0,2030.5,0.0011]
[1772181566571,13.09896621,2031.0,2030.5,0.0011]
[1772181566887,1.23098133,2030.9,2030.5,0.0011]
[1772181567078,1.70303554,2030.9,2030.5,0.0011]
[1772181567266,12.626912,2030.7,2030.5,0.0011]
[1772181569472,1.2311632,2030.6,2030.5,0.0011]
[1772181569679,1.2311632,2030.6,2030.3,0.0011]
[1772181570197,13.8580752,2030.6,2030.3,0.0011]
[1772181570600,1.2311632,2030.6,2030.3,0.0011]
[1772181570800,5.39576947,2031.0,2030.3,0.45754731]
[1772181570801,0.47205421,2031.0,2030.3,0.45754731]
[1772181570980,12.626912,2030.9,2030.3,0.45754731]
[1772181571593,0.47205421,2031.3,2030.4,0.45644731]
[1772181571793,12.626912,2031.1,2030.4,0.45644731]
[1772181572804,12.626912,2031.1,2030.5,0.45754731]
[1772181573102,0.001,2030.8,2030.5,0.45754731]
[1772181573699,0.001,2030.8,2030.6,1.2311632]
[1772181573878,0.001,2030.8,2030.5,0.45754731]
[1772181574078,0.001,2030.8,2030.5,1.68876942]
[1772181574486,0.001,2030.8,2030.5,0.45754731]
[1772181574681,0.001,2030.8,2030.5,0.0011]
[1772181575798,1.23204195,2030.8,2030.5,0.0011]
[1772181576107,13.85895395,2030.8,2030.5,0.0011]
[1772181576315,12.626912,2030.6,2030.3,0.0011]
[1772181576603,0.001,2030.8,2030.3,0.0011]
[1772181576810,12.626912,2030.7,2030.3,0.0011]
[1772181578215,1.2311632,2030.6,2030.3,0.0011]
[1772181578412,0.47350019,2030.5,2030.3,0.0011]
[1772181579418,0.001,2030.8,2030.4,0.46929074]
[1772181579611,1.70430276,2031.2,2030.4,0.46929074]
[1772181580284,1.70430276,2031.2,2030.5,1.72574819]
[1772181580484,1.70430276,2031.2,2030.5,1.23122383]
[1772181580791,1.70430276,2031.2,2030.6,0.49452436]
[1772181581888,1.7043066,2031.2,2030.6,0.49452436]
[1772181582306,0.45406793,2031.4,2030.6,1.72563078]
[1772181582715,0.45406793,2031.4,2030.7,0.49452436]
[1772181583188,1.23061777,2031.5,2030.7,0.49452436]
[1772181583702,2.48067331,2031.6,2030.7,0.49452436]
[1772181584030,1.23060538,2031.6,2030.7,0.49452436]